[Event "22nd ETCC Women 2019"]
[Site "Batumi"]
[Date "2019.10.28"]
[Round "5.14"]
[White "Balajayeva, Khanim"]
[Black "Zimina, Olga"]
[Result "0-1"]
[ECO "B14"]
[WhiteElo "2368"]
[BlackElo "2397"]
[Annotator "NA"]
[PlyCount "84"]
[EventDate "2019.10.24"]
[EventType "team-tourn"]
[EventCountry "GEO"]
[SourceTitle "playchess.com"]
[Source "ChessBase"]
[SourceQuality "1"]
[WhiteTeam "Azerbaijan"]
[BlackTeam "Italy"]
[WhiteTeamCountry "AZE"]
[BlackTeamCountry "ITA"]
[TimeControl "40/5400+30:1800+30"]

1. e4 {[%emt 0:00:00]} c6 {[%emt 0:00:00]} 2. d4 {[%emt 0:00:00]} d5 {[%emt 0:00:00]} 3. exd5 {[%emt 0:00:00]} cxd5 {[%emt 0:00:00]} 4. c4 {[%emt 0:00:00]} Nf6 {[%emt 0:00:00]} 5. Nc3 {[%emt 0:00:00]} g6 {[%emt 0:00:05]} 6. Qb3 {[%emt 0:00:27]} Bg7 {[%emt 0:00:07]} 7. cxd5 {[%emt 0:00:08]} O-O {[%emt 0:00:05]} 8. Nge2 {[%emt 0:01:06]} a5 {[%emt 0:00:06]} 9. g3 {[%emt 0:03:31]} a4 {[%emt 0:02:19]} 10. Nxa4 {[%emt 0:11:35]} Qxd5 {[%emt 0:03:57]} 11. Qxd5 {[%emt 0:18:22]} Nxd5 {[%emt 0:00:14]} 12. Bg2 {[%emt 0:16:08]} Nb4 {[%emt 0:37:22]} 13. Nb6 {[%emt 0:00:11]} Nc2+ {[%emt 0:00:23]} 14. Kd1 {[%emt 0:02:30]} Nxa1 {[%emt 0:00:07]} 15. Nxa8 {[%emt 0:00:05]} Nc6 {[%emt 0:00:16]} 16. Be3 {[%emt 0:09:42]} Bf5 {[%emt 0:02:21]} 17. Nb6 {[%emt 0:05:59]} Rd8 {[%emt 0:08:19]} 18. Bxc6 {[%emt 0:08:25]} bxc6 {[%emt 0:00:18]} 19. Kd2 {[%emt 0:00:02]} Nc2 {[%emt 0:00:28]} 20. Rc1 {[%emt 0:02:41]} e5 {[%emt 0:08:01]} 21. g4 {[%emt 0:10:41]} Nxe3 {[%emt 0:16:16]} 22. fxe3 {[%emt 0:00:33]} Be4 {[%emt 0:07:10]} 23. Rc4 {[%emt 0:03:02]} exd4 {[%emt 0:04:57]} 24. exd4 {[%emt 0:01:08]} Bh6+ {[%emt 0:00:04]} 25. Kc3 {[%emt 0:00:42]} Bf3 {[%emt 0:00:16]} 26. Ng3 {[%emt 0:00:36]} Bg7 {[%emt 0:00:17]} 27. b4 {[%emt 0:01:44]} Bxg4 {[%emt 0:00:13]} 28. a4 {[%emt 0:00:24]} Be6 {[%emt 0:00:40]} 29. Rxc6 {[%emt 0:01:19]} Rxd4 {[%emt 0:00:06]} 30. Kc2 {[%emt 0:02:53]} Rxb4 {[%emt 0:00:07]} 31. a5 {[%emt 0:00:10]} Rb2+ {[%emt 0:00:20]} 32. Kd3 {[%emt 0:00:28]} Ra2 {[%emt 0:01:36]} 33. Rc5 {[%emt 0:00:21]} Bf8 {[%emt 0:00:40]} 34. Rb5 {[%emt 0:00:42]} Rxh2 {[%emt 0:00:09]} 35. Nf1 {[%emt 0:01:04]} Ra2 {[%emt 0:00:49]} 36. Ne3 {[%emt 0:00:24]} h5 {[%emt 0:00:59]} 37. Nbd5 {[%emt 0:00:24]} h4 {[%emt 0:01:09]} 38. Nf6+ {[%emt 0:00:36]} Kg7 {[%emt 0:00:09]} 39. Nfg4 {[%emt 0:00:29]} h3 {[%emt 0:00:51]} 40. Rb1 {[%emt 0:00:00]} Rxa5 {[%emt 0:00:00]} 41. Rh1 {[%emt 0:03:34]} Bd6 {[%emt 0:04:37]} 42. Ke2 {[%emt 0:02:00]} Ra3 {[%emt 0:02:12]} 0-1

[Event "22nd ETCC Women 2019"]
[Site "Batumi"]
[Date "2019.10.28"]
[Round "5.14"]
[White "Medic, Mirjana"]
[Black "Frisk, Ellinor"]
[Result "1/2-1/2"]
[ECO "A46"]
[WhiteElo "2163"]
[BlackElo "2227"]
[Annotator "NA"]
[PlyCount "90"]
[EventDate "2019.10.24"]
[EventType "team-tourn"]
[EventCountry "GEO"]
[SourceTitle "playchess.com"]
[Source "ChessBase"]
[SourceQuality "1"]
[WhiteTeam "Croatia"]
[BlackTeam "Sweden"]
[WhiteTeamCountry "CRO"]
[BlackTeamCountry "SWE"]
[TimeControl "40/5400+30:1800+30"]

1. d4 {[%emt 0:00:00]} Nf6 {[%emt 0:00:00]} 2. Nf3 {[%emt 0:00:00]} c5 {[%emt 0:00:00]} 3. e3 {[%emt 0:01:04]} cxd4 {[%emt 0:00:09]} 4. exd4 {[%emt 0:00:07]} d5 {[%emt 0:00:53]} 5. Bd3 {[%emt 0:00:53]} Bg4 {[%emt 0:00:44]} 6. h3 {[%emt 0:00:10]} Bh5 {[%emt 0:01:20]} 7. c3 {[%emt 0:01:00]} Nc6 {[%emt 0:02:42]} 8. Nbd2 {[%emt 0:10:02]} e6 {[%emt 0:01:09]} 9. O-O {[%emt 0:00:12]} Bd6 {[%emt 0:03:54]} 10. Re1 {[%emt 0:03:20]} Qc7 {[%emt 0:01:15]} 11. Nf1 {[%emt 0:07:14]} O-O {[%emt 0:02:44]} 12. Bg5 {[%emt 0:04:15]} Nd7 {[%emt 0:08:48]} 13. Be2 {[%emt 0:03:15]} Rfe8 {[%emt 0:04:39]} 14. Nh4 {[%emt 0:08:16]} Bxe2 {[%emt 0:00:27]} 15. Qxe2 {[%emt 0:00:02]} Rab8 {[%emt 0:09:30]} 16. Bd2 {[%emt 0:05:19]} b5 {[%emt 0:01:07]} 17. Nf3 {[%emt 0:01:08]} Nf6 {[%emt 0:02:42]} 18. Ne5 {[%emt 0:07:02]} Ne4 {[%emt 0:01:01]} 19. Nxc6 {[%emt 0:02:42]} Qxc6 {[%emt 0:00:26]} 20. Qd3 {[%emt 0:07:45]} Rec8 {[%emt 0:05:44]} 21. Rec1 {[%emt 0:01:58]} Qb7 {[%emt 0:06:41]} 22. Be3 {[%emt 0:07:20]} h6 {[%emt 0:00:36]} 23. Nd2 {[%emt 0:00:22]} Nxd2 {[%emt 0:02:59]} 24. Qxd2 {[%emt 0:00:29]} b4 {[%emt 0:01:58]} 25. cxb4 {[%emt 0:01:55]} Bxb4 {[%emt 0:01:01]} 26. Qe2 {[%emt 0:00:29]} Bd6 {[%emt 0:04:06]} 27. Rxc8+ {[%emt 0:05:15]} Rxc8 {[%emt 0:00:06]} 28. Rc1 {[%emt 0:00:31]} Rxc1+ {[%emt 0:02:05]} 29. Bxc1 {[%emt 0:00:02]} Qb4 {[%emt 0:02:33]} 30. Qd2 {[%emt 0:02:54]} Qc4 {[%emt 0:01:51]} 31. b3 {[%emt 0:00:08]} Qc6 {[%emt 0:03:33]} 32. g3 {[%emt 0:01:07]} Kf8 {[%emt 0:00:54]} 33. Bb2 {[%emt 0:02:47]} Qa6 {[%emt 0:01:23]} 34. Bc1 {[%emt 0:00:15]} Qc6 {[%emt 0:02:54]} 35. Bb2 {[%emt 0:03:57]} Qa6 {[%emt 0:08:35]} 36. Bc1 {[%emt 0:00:31]} Qb6 {[%emt 0:03:02]} 37. Qc3 {[%emt 0:01:19]} Qb7 {[%emt 0:02:53]} 38. Bd2 {[%emt 0:00:26]} Ke7 {[%emt 0:03:22]} 39. Qa5 {[%emt 0:03:45]} Kd7 {[%emt 0:01:27]} 40. Qa4+ {[%emt 0:00:00]} Ke7 {[%emt 0:00:00]} 41. Qa5 {[%emt 0:02:01]} Kd7 {[%emt 0:01:35]} 42. Qa4+ {[%emt 0:05:16]} Kd8 {[%emt 0:03:17]} 43. Ba5+ {[%emt 0:01:24]} Ke7 {[%emt 0:01:05]} 44. Bd2 {[%emt 0:02:57]} Kd8 {[%emt 0:03:32]} 45. Ba5+ {[%emt 0:00:21]} Ke7 {[%emt 0:01:46]} 1/2-1/2

[Event "22nd ETCC Women 2019"]
[Site "Batumi"]
[Date "2019.10.28"]
[Round "5.15"]
[White "Sedina, Elena"]
[Black "Fataliyeva, Ulviyya"]
[Result "0-1"]
[ECO "C03"]
[WhiteElo "2294"]
[BlackElo "2368"]
[Annotator "NA RC"]
[PlyCount "80"]
[EventDate "2019.10.24"]
[EventType "team-tourn"]
[EventCountry "GEO"]
[SourceTitle "playchess.com"]
[Source "ChessBase"]
[SourceQuality "1"]
[WhiteTeam "Italy"]
[BlackTeam "Azerbaijan"]
[WhiteTeamCountry "ITA"]
[BlackTeamCountry "AZE"]
[TimeControl "40/5400+30:1800+30"]

1. e4 {[%emt 0:00:00]} e6 {[%emt 0:00:00]} 2. d4 {[%emt 0:00:00]} d5 {[%emt 0:00:00]} 3. Nd2 {[%emt 0:00:51]} Be7 {[%emt 0:00:00]} 4. e5 {[%emt 0:02:45]} c5 {[%emt 0:00:00]} 5. c3 {[%emt 0:00:07]} Nc6 {[%emt 0:00:39]} 6. Ndf3 {[%emt 0:00:43]} Qb6 {[%emt 0:02:10]} 7. Bd3 {[%emt 0:01:23]} Nh6 {[%emt 0:04:39]} 8. Ne2 {[%emt 0:04:35]} cxd4 {[%emt 0:01:29]} 9. cxd4 {[%emt 0:13:41]} Nf5 {[%emt 0:01:08]} 10. O-O {[%emt 0:04:13]} Bd7 {[%emt 0:03:23]} 11. Bxf5 {[%emt 0:19:37]} exf5 {[%emt 0:00:07]} 12. Nf4 {[%emt 0:04:21]} Be6 {[%emt 0:00:21]} 13. h4 {[%emt 0:01:09]} Rc8 {[%emt 0:06:02]} 14. Rb1 {[%emt 0:04:19]} Qd8 {[%emt 0:15:37]} 15. Nh5 {[%emt 0:14:57]} g6 {[%emt 0:22:20]} 16. Ng7+ {[%emt 0:10:01]} Kd7 {[%emt 0:00:06]} 17. Bg5 {[%emt 0:05:29]} h6 {[%emt 0:03:44]} 18. Bxe7 {[%emt 0:06:56]} Qxe7 {[%emt 0:00:09]} 19. b4 {[%emt 0:00:22]} Kc7 {[%emt 0:07:24]} 20. Nxe6+ {[%emt 0:01:26]} fxe6 {[%emt 0:00:17]} 21. Qa4 {[%emt 0:00:03]} Kb8 {[%emt 0:01:07]} 22. Rfc1 {[%emt 0:00:18]} Qd7 {[%emt 0:02:52]} 23. b5 {[%emt 0:01:00]} Ne7 {[%emt 0:00:22]} 24. Qb4 {[%emt 0:00:06]} Rxc1+ {[%emt 0:03:36]} 25. Rxc1 {[%emt 0:00:01]} Nc8 {[%emt 0:01:27]} 26. a4 {[%emt 0:00:32]} Qd8 {[%emt 0:06:48]} 27. a5 {[%emt 0:02:29]} g5 {[%emt 0:00:05]} 28. b6 {[%emt 0:00:23]} axb6 {[%emt 0:00:24]} 29. axb6 {[%emt 0:00:01]} gxh4 {[%emt 0:03:12]} 30. Kh1 {[%emt 0:01:49]} Rg8 {[%emt 0:00:35]} 31. Rc7 {[%emt 0:00:23]} h3 {[%emt 0:01:49]} 32. g3 {[%emt 0:01:21]} f4 {[%emt 0:02:52]} 33. g4 {[%emt 0:00:28]} Rxg4 {[%emt 0:01:59]} 34. Qc5 {[%emt 0:00:24]} Nxb6 {[%emt 0:00:16]} 35. Re7 {[%emt 0:00:04]} Nc8 {[%emt 0:00:33]} 36. Rh7 {[%emt 0:00:27]} Rg2 {[%emt 0:02:55]} 37. Qb5 {[%emt 0:01:02]} Nb6 {[%emt 0:01:55]} 38. Qf1 {[%emt 0:00:32]} Qf8 {[%emt 0:02:18]} 39. Qb1 {[%emt 0:00:36]} Qg8 {[%emt 0:00:21]} 40. Rxh6 {[%emt 0:00:00]} Rh2+ {[%emt 0:00:00]} 0-1

[Event "22nd ETCC Women 2019"]
[Site "Batumi"]
[Date "2019.10.28"]
[Round "5.16"]
[White "Mammadova, Gulnar"]
[Black "Movileanu, Daniela"]
[Result "1-0"]
[ECO "B27"]
[WhiteElo "2369"]
[BlackElo "2173"]
[Annotator "NA"]
[PlyCount "65"]
[EventDate "2019.10.24"]
[EventType "team-tourn"]
[EventCountry "GEO"]
[SourceTitle "playchess.com"]
[Source "ChessBase"]
[SourceQuality "1"]
[WhiteTeam "Azerbaijan"]
[BlackTeam "Italy"]
[WhiteTeamCountry "AZE"]
[BlackTeamCountry "ITA"]
[TimeControl "40/5400+30:1800+30"]

1. e4 {[%emt 0:00:00]} c5 {[%emt 0:00:00]} 2. Nf3 {[%emt 0:00:00]} g6 {[%emt 0:00:45]} 3. c3 {[%emt 0:00:48]} d5 {[%emt 0:00:26]} 4. e5 {[%emt 0:00:23]} Nc6 {[%emt 0:00:53]} 5. Bb5 {[%emt 0:00:26]} Bg4 {[%emt 0:02:01]} 6. O-O {[%emt 0:01:52]} Qb6 {[%emt 0:01:49]} 7. Bxc6+ {[%emt 0:03:24]} Qxc6 {[%emt 0:00:17]} 8. d4 {[%emt 0:01:06]} e6 {[%emt 0:01:54]} 9. h3 {[%emt 0:01:29]} Bxf3 {[%emt 0:05:41]} 10. Qxf3 {[%emt 0:00:06]} Ne7 {[%emt 0:00:46]} 11. Be3 {[%emt 0:06:01]} c4 {[%emt 0:04:42]} 12. Nd2 {[%emt 0:02:29]} h5 {[%emt 0:01:45]} 13. Bg5 {[%emt 0:02:27]} Nf5 {[%emt 0:06:04]} 14. b3 {[%emt 0:09:57]} cxb3 {[%emt 0:05:39]} 15. axb3 {[%emt 0:00:31]} Be7 {[%emt 0:01:12]} 16. Bxe7 {[%emt 0:01:49]} Nxe7 {[%emt 0:05:07]} 17. Qd3 {[%emt 0:01:37]} O-O {[%emt 0:03:04]} 18. Nf3 {[%emt 0:02:15]} Rfc8 {[%emt 0:09:33]} 19. Rfc1 {[%emt 0:00:57]} a5 {[%emt 0:04:33]} 20. g4 {[%emt 0:01:52]} hxg4 {[%emt 0:08:13]} 21. hxg4 {[%emt 0:00:05]} Kg7 {[%emt 0:01:02]} 22. Kg2 {[%emt 0:08:24]} Qc7 {[%emt 0:04:02]} 23. Ng5 {[%emt 0:06:10]} Nc6 {[%emt 0:01:31]} 24. Rh1 {[%emt 0:03:42]} Rh8 {[%emt 0:00:48]} 25. f4 {[%emt 0:00:52]} Ne7 {[%emt 0:05:05]} 26. Qe3 {[%emt 0:05:41]} Rac8 {[%emt 0:02:46]} 27. f5 {[%emt 0:07:15]} exf5 {[%emt 0:04:44]} 28. Nh7 {[%emt 0:02:43]} f4 {[%emt 0:05:00]} 29. Qxf4 {[%emt 0:01:19]} Ng8 {[%emt 0:00:16]} 30. Ng5 {[%emt 0:03:25]} Rh6 {[%emt 0:00:31]} 31. Raf1 {[%emt 0:01:25]} Rxh1 {[%emt 0:03:43]} 32. Rxh1 {[%emt 0:00:56]} Nh6 {[%emt 0:00:52]} 33. Qf6+ {[%emt 0:00:05]} 1-0

[Event "22nd ETCC Women 2019"]
[Site "Batumi"]
[Date "2019.10.28"]
[Round "5.16"]
[White "Cvitan, Ena"]
[Black "Bengtsson, Siv"]
[Result "0-1"]
[ECO "D86"]
[WhiteElo "2182"]
[BlackElo "2086"]
[Annotator "NA"]
[PlyCount "115"]
[EventDate "2019.10.24"]
[EventType "team-tourn"]
[EventCountry "GEO"]
[SourceTitle "playchess.com"]
[Source "ChessBase"]
[SourceQuality "1"]
[WhiteTeam "Croatia"]
[BlackTeam "Sweden"]
[WhiteTeamCountry "CRO"]
[BlackTeamCountry "SWE"]
[TimeControl "40/5400+30:1800+30"]

1. d4 {[%emt 0:00:00]} Nf6 {[%emt 0:00:00]} 2. c4 {[%emt 0:00:00]} g6 {[%emt 0:00:36]} 3. Nc3 {[%emt 0:00:00]} d5 {[%emt 0:00:49]} 4. cxd5 {[%emt 0:00:04]} Nxd5 {[%emt 0:00:24]} 5. e4 {[%emt 0:00:08]} Nxc3 {[%emt 0:00:52]} 6. bxc3 {[%emt 0:00:07]} Bg7 {[%emt 0:00:54]} 7. Bc4 {[%emt 0:00:17]} c5 {[%emt 0:02:02]} 8. Ne2 {[%emt 0:00:12]} Nc6 {[%emt 0:01:13]} 9. Be3 {[%emt 0:00:10]} O-O {[%emt 0:01:52]} 10. O-O {[%emt 0:00:07]} Qc7 {[%emt 0:01:15]} 11. Rc1 {[%emt 0:01:56]} b6 {[%emt 0:03:27]} 12. Qd2 {[%emt 0:00:57]} Bb7 {[%emt 0:01:54]} 13. Bh6 {[%emt 0:03:50]} Rad8 {[%emt 0:02:24]} 14. Bxg7 {[%emt 0:03:16]} Kxg7 {[%emt 0:00:11]} 15. Qe3 {[%emt 0:00:14]} e5 {[%emt 0:08:54]} 16. Bb5 {[%emt 0:03:03]} Ne7 {[%emt 0:05:21]} 17. f4 exd4 {[%emt 0:22:44]} 18. cxd4 {[%emt 0:07:05]} f5 {[%emt 0:00:12]} 19. dxc5 {[%emt 0:12:53]} Bxe4 {[%emt 0:07:22]} 20. Ng3 {[%emt 0:12:31]} Nd5 {[%emt 0:13:36]} 21. Qd4+ {[%emt 0:09:34]} Nf6 {[%emt 0:00:23]} 22. Qe5 {[%emt 0:00:19]} Qxe5 {[%emt 0:08:16]} 23. fxe5 {[%emt 0:00:06]} Nd5 {[%emt 0:00:39]} 24. e6 {[%emt 0:05:41]} Rf6 {[%emt 0:03:23]} 25. Bd7 {[%emt 0:05:55]} bxc5 {[%emt 0:04:53]} 26. Rxc5 {[%emt 0:00:14]} Ne7 {[%emt 0:00:30]} 27. Nxe4 {[%emt 0:03:43]} fxe4 {[%emt 0:00:12]} 28. Re1 {[%emt 0:01:10]} Rb8 {[%emt 0:01:37]} 29. Rc2 {[%emt 0:04:16]} Nf5 {[%emt 0:03:34]} 30. Rce2 {[%emt 0:03:12]} e3 {[%emt 0:01:33]} 31. g4 {[%emt 0:01:44]} Ne7 {[%emt 0:00:36]} 32. Rxe3 {[%emt 0:00:11]} Rf4 {[%emt 0:00:48]} 33. h3 {[%emt 0:00:51]} Rb2 {[%emt 0:00:28]} 34. Rf1 {[%emt 0:02:53]} Rbb4 {[%emt 0:01:24]} 35. Ra3 {[%emt 0:02:18]} Kf6 {[%emt 0:01:07]} 36. Rxa7 {[%emt 0:01:01]} Rxf1+ {[%emt 0:00:08]} 37. Kxf1 {[%emt 0:00:06]} Rb2 {[%emt 0:00:06]} 38. Ra3 {[%emt 0:00:39]} Ke5 {[%emt 0:02:01]} 39. Re3+ {[%emt 0:00:27]} Kd6 {[%emt 0:00:55]} 40. Re2 {[%emt 0:00:00]} Rb1+ {[%emt 0:00:00]} 41. Kf2 {[%emt 0:01:07]} Rd1 {[%emt 0:02:49]} 42. a4 {[%emt 0:04:54]} Rd3 {[%emt 0:04:29]} 43. Re3 {[%emt 0:01:33]} Rd5 {[%emt 0:01:20]} 44. Ke2 {[%emt 0:03:21]} Rc5 {[%emt 0:02:33]} 45. Ra3 {[%emt 0:02:26]} Ra5 {[%emt 0:01:50]} 46. Rd3+ {[%emt 0:01:53]} Ke5 {[%emt 0:00:48]} 47. Rb3 {[%emt 0:00:48]} Kd6 {[%emt 0:03:51]} 48. Kd2 {[%emt 0:02:03]} Ra7 {[%emt 0:06:38]} 49. Rd3+ {[%emt 0:01:04]} Ke5 {[%emt 0:00:30]} 50. Kc3 {[%emt 0:00:10]} h5 {[%emt 0:02:47]} 51. Kc4 {[%emt 0:01:47]} hxg4 {[%emt 0:00:50]} 52. hxg4 {[%emt 0:00:09]} g5 {[%emt 0:02:10]} 53. Kc5 {[%emt 0:01:23]} Rc7+ {[%emt 0:02:01]} 54. Kb6 {[%emt 0:03:08]} Rc4 {[%emt 0:00:17]} 55. a5 {[%emt 0:00:48]} Rb4+ {[%emt 0:00:35]} 56. Kc7 {[%emt 0:02:19]} Rxg4 {[%emt 0:02:42]} 57. Kd8 {[%emt 0:01:14]} Ng6 {[%emt 0:01:48]} 58. e7 {[%emt 0:00:36]} 0-1

[Event "22nd ETCC Women 2019"]
[Site "Batumi"]
[Date "2019.10.28"]
[Round "5.17"]
[White "Socko, Monika"]
[Black "Milliet, Sophie"]
[Result "1-0"]
[ECO "E12"]
[WhiteElo "2417"]
[BlackElo "2400"]
[Annotator "NA"]
[PlyCount "103"]
[EventDate "2019.10.24"]
[EventType "team-tourn"]
[EventCountry "GEO"]
[SourceTitle "playchess.com"]
[Source "ChessBase"]
[SourceQuality "1"]
[WhiteTeam "Poland"]
[BlackTeam "France"]
[WhiteTeamCountry "POL"]
[BlackTeamCountry "FRA"]
[TimeControl "40/5400+30:1800+30"]

1. d4 {[%emt 0:00:00]} Nf6 {[%emt 0:00:00]} 2. c4 {[%emt 0:00:00]} e6 {[%emt 0:00:00]} 3. Nf3 {[%emt 0:00:00]} b6 {[%emt 0:00:07]} 4. Bf4 {[%emt 0:00:00]} Bb4+ {[%emt 0:00:20]} 5. Nfd2 {[%emt 0:01:57]} Nh5 {[%emt 0:00:56]} 6. Bg3 {[%emt 0:00:34]} Nxg3 {[%emt 0:00:21]} 7. hxg3 {[%emt 0:00:05]} c5 {[%emt 0:01:25]} 8. d5 {[%emt 0:05:49]} Qe7 {[%emt 0:02:11]} 9. a3 {[%emt 0:05:05]} Ba5 {[%emt 0:01:09]} 10. Qc2 {[%emt 0:02:44]} h6 {[%emt 0:00:23]} 11. Nc3 {[%emt 0:01:23]} O-O {[%emt 0:02:53]} 12. e4 {[%emt 0:14:29]} Ba6 {[%emt 0:05:35]} 13. O-O-O {[%emt 0:06:48]} Bxc3 {[%emt 0:08:49]} 14. Qxc3 {[%emt 0:04:46]} d6 {[%emt 0:05:54]} 15. Bd3 {[%emt 0:05:32]} Nd7 {[%emt 0:02:50]} 16. f4 {[%emt 0:00:40]} exd5 {[%emt 0:08:24]} 17. exd5 {[%emt 0:00:20]} Rfe8 {[%emt 0:02:56]} 18. Ne4 {[%emt 0:12:05]} b5 {[%emt 0:08:43]} 19. cxb5 {[%emt 0:07:37]} Bb7 {[%emt 0:06:51]} 20. Rhe1 {[%emt 0:03:17]} Rac8 {[%emt 0:01:29]} 21. Bc4 {[%emt 0:05:08]} Nb6 {[%emt 0:00:28]} 22. g4 {[%emt 0:00:23]} Qd7 {[%emt 0:02:44]} 23. g3 {[%emt 0:03:04]} Nxc4 {[%emt 0:13:13]} 24. Qxc4 {[%emt 0:00:06]} Qxg4 {[%emt 0:00:05]} 25. Nxd6 {[%emt 0:04:15]} Rxe1 {[%emt 0:00:04]} 26. Rxe1 {[%emt 0:00:01]} Qxg3 {[%emt 0:00:05]} 27. Re7 {[%emt 0:05:20]} Qg1+ {[%emt 0:11:33]} 28. Kd2 {[%emt 0:00:10]} Rd8 {[%emt 0:00:24]} 29. Nxb7 {[%emt 0:01:26]} Qg2+ {[%emt 0:00:04]} 30. Re2 {[%emt 0:01:24]} Rxd5+ {[%emt 0:00:08]} 31. Kc2 {[%emt 0:00:29]} Qg6+ {[%emt 0:00:26]} 32. Qe4 {[%emt 0:00:15]} Qh5 {[%emt 0:00:42]} 33. Rd2 {[%emt 0:01:53]} Rxd2+ {[%emt 0:02:11]} 34. Kxd2 {[%emt 0:00:02]} Qh2+ {[%emt 0:00:05]} 35. Kc3 {[%emt 0:00:14]} Qg3+ {[%emt 0:00:12]} 36. Kc4 {[%emt 0:00:15]} Qf2 {[%emt 0:01:18]} 37. Nxc5 {[%emt 0:01:20]} Qxb2 {[%emt 0:00:06]} 38. a4 {[%emt 0:02:25]} Qa2+ {[%emt 0:04:57]} 39. Kd4 {[%emt 0:00:05]} h5 {[%emt 0:00:20]} 40. Qd5 {[%emt 0:00:00]} Qf2+ {[%emt 0:00:00]} 41. Ke5 {[%emt 0:03:54]} h4 {[%emt 0:03:59]} 42. Ne4 {[%emt 0:02:32]} Qe1 {[%emt 0:02:06]} 43. Kd6 {[%emt 0:04:57]} Qb4+ {[%emt 0:03:34]} 44. Kc7 {[%emt 0:03:13]} Qxa4 {[%emt 0:11:18]} 45. Qd8+ {[%emt 0:00:19]} Kh7 {[%emt 0:00:01]} 46. Qxh4+ {[%emt 0:00:05]} Kg8 {[%emt 0:00:12]} 47. Qd8+ {[%emt 0:00:06]} Kh7 {[%emt 0:00:03]} 48. Ng5+ {[%emt 0:01:37]} Kg6 {[%emt 0:00:04]} 49. Qd3+ {[%emt 0:01:19]} f5 {[%emt 0:00:12]} 50. Ne6 {[%emt 0:02:28]} Qa5+ {[%emt 0:06:43]} 51. Kd7 {[%emt 0:00:52]} Qe1 {[%emt 0:02:27]} 52. Qd4 {[%emt 0:01:59]} 1-0

[Event "22nd ETCC Women 2019"]
[Site "Batumi"]
[Date "2019.10.28"]
[Round "5.17"]
[White "Machlik, Monika"]
[Black "Exler, Veronika"]
[Result "1/2-1/2"]
[ECO "D31"]
[WhiteElo "2159"]
[BlackElo "2222"]
[Annotator "NA"]
[PlyCount "75"]
[EventDate "2019.10.24"]
[EventType "team-tourn"]
[EventCountry "GEO"]
[SourceTitle "playchess.com"]
[Source "ChessBase"]
[SourceQuality "1"]
[WhiteTeam "Norway"]
[BlackTeam "Austria"]
[WhiteTeamCountry "NOR"]
[BlackTeamCountry "AUT"]
[TimeControl "40/5400+30:1800+30"]

1. d4 {[%emt 0:00:00]} d5 {[%emt 0:00:00]} 2. c4 {[%emt 0:00:00]} e6 {[%emt 0:00:00]} 3. Nc3 {[%emt 0:00:00]} Bb4 {[%emt 0:00:00]} 4. cxd5 {[%emt 0:00:42]} exd5 {[%emt 0:00:00]} 5. Nf3 {[%emt 0:00:31]} Nf6 {[%emt 0:00:00]} 6. Qa4+ {[%emt 0:00:35]} Nc6 {[%emt 0:00:01]} 7. Bg5 {[%emt 0:00:26]} h6 {[%emt 0:00:14]} 8. Bxf6 {[%emt 0:00:14]} Qxf6 {[%emt 0:00:07]} 9. e3 {[%emt 0:00:14]} O-O {[%emt 0:07:49]} 10. Be2 {[%emt 0:00:17]} Rd8 {[%emt 0:35:49]} 11. O-O {[%emt 0:01:12]} Be6 {[%emt 0:09:02]} 12. Ne5 {[%emt 0:27:38]} Bxc3 {[%emt 0:08:24]} 13. Nxc6 {[%emt 0:00:42]} Bd7 {[%emt 0:01:43]} 14. bxc3 {[%emt 0:02:45]} Bxc6 {[%emt 0:00:05]} 15. Bb5 {[%emt 0:04:10]} Bxb5 {[%emt 0:05:57]} 16. Qxb5 {[%emt 0:00:05]} b6 {[%emt 0:04:58]} 17. Rac1 {[%emt 0:09:49]} a6 {[%emt 0:03:28]} 18. Qb3 {[%emt 0:10:00]} b5 {[%emt 0:00:11]} 19. a4 {[%emt 0:03:12]} c6 {[%emt 0:00:30]} 20. Ra1 {[%emt 0:01:04]} Rac8 {[%emt 0:05:54]} 21. Ra3 {[%emt 0:02:58]} Rd6 {[%emt 0:01:32]} 22. Rfa1 {[%emt 0:01:05]} Re8 {[%emt 0:00:36]} 23. Qb4 {[%emt 0:02:26]} Qe6 {[%emt 0:10:20]} 24. Qc5 {[%emt 0:07:55]} h5 {[%emt 0:00:59]} 25. Qb6 {[%emt 0:05:33]} Qe4 {[%emt 0:02:22]} 26. Qc7 {[%emt 0:05:04]} Rg6 {[%emt 0:02:03]} 27. g3 {[%emt 0:00:16]} Rf6 {[%emt 0:00:04]} 28. Qd7 {[%emt 0:05:21]} Ree6 {[%emt 0:01:03]} 29. h4 {[%emt 0:03:41]} Rg6 {[%emt 0:00:43]} 30. axb5 {[%emt 0:03:42]} cxb5 {[%emt 0:00:30]} 31. Rxa6 {[%emt 0:01:54]} Rxg3+ {[%emt 0:00:30]} 32. fxg3 {[%emt 0:00:05]} Qxe3+ {[%emt 0:00:06]} 33. Kg2 {[%emt 0:00:25]} Qe2+ {[%emt 0:00:33]} 34. Kg1 {[%emt 0:00:28]} Qe3+ {[%emt 0:00:15]} 35. Kg2 {[%emt 0:00:05]} Qe2+ {[%emt 0:00:35]} 36. Kg1 {[%emt 0:00:08]} Qe3+ {[%emt 0:00:42]} 37. Kg2 {[%emt 0:00:19]} Qe2+ {[%emt 0:00:30]} 38. Kg1 {[%emt 0:00:25]} 1/2-1/2

[Event "22nd ETCC Women 2019"]
[Site "Batumi"]
[Date "2019.10.28"]
[Round "5.18"]
[White "Trippold, Denise"]
[Black "Machlik, Edit"]
[Result "1-0"]
[ECO "E11"]
[WhiteElo "2180"]
[BlackElo "2062"]
[Annotator "NA"]
[PlyCount "51"]
[EventDate "2019.10.24"]
[EventType "team-tourn"]
[EventCountry "GEO"]
[SourceTitle "playchess.com"]
[Source "ChessBase"]
[SourceQuality "1"]
[WhiteTeam "Austria"]
[BlackTeam "Norway"]
[WhiteTeamCountry "AUT"]
[BlackTeamCountry "NOR"]
[TimeControl "40/5400+30:1800+30"]

1. d4 {[%emt 0:00:00]} Nf6 {[%emt 0:00:00]} 2. c4 {[%emt 0:00:00]} e6 {[%emt 0:00:19]} 3. Nf3 {[%emt 0:00:00]} Bb4+ {[%emt 0:00:19]} 4. Nbd2 {[%emt 0:00:00]} d6 {[%emt 0:00:54]} 5. e3 {[%emt 0:00:18]} O-O {[%emt 0:00:29]} 6. a3 {[%emt 0:00:21]} Bxd2+ {[%emt 0:00:19]} 7. Qxd2 {[%emt 0:00:24]} Nbd7 {[%emt 0:03:15]} 8. Be2 {[%emt 0:07:10]} e5 {[%emt 0:01:29]} 9. Qc2 {[%emt 0:00:13]} a5 {[%emt 0:05:56]} 10. b3 {[%emt 0:00:16]} Qe7 {[%emt 0:06:08]} 11. Bb2 {[%emt 0:01:00]} Re8 {[%emt 0:19:18]} 12. O-O {[%emt 0:03:31]} exd4 {[%emt 0:18:20]} 13. Nxd4 {[%emt 0:02:05]} Ne5 {[%emt 0:03:13]} 14. h3 {[%emt 0:03:35]} Bd7 {[%emt 0:03:25]} 15. Rfd1 {[%emt 0:04:37]} Nc6 {[%emt 0:05:13]} 16. Nb5 {[%emt 0:03:57]} Rac8 {[%emt 0:02:16]} 17. Nc3 {[%emt 0:05:33]} Ne5 {[%emt 0:03:16]} 18. Nd5 {[%emt 0:23:44]} Nxd5 {[%emt 0:00:21]} 19. cxd5 {[%emt 0:00:45]} c6 {[%emt 0:12:38]} 20. Rac1 {[%emt 0:08:07]} cxd5 {[%emt 0:02:12]} 21. Qd2 {[%emt 0:00:20]} Bc6 {[%emt 0:06:48]} 22. Qd4 {[%emt 0:02:27]} Qf8 {[%emt 0:00:47]} 23. a4 {[%emt 0:01:35]} f6 {[%emt 0:00:49]} 24. Bc3 {[%emt 0:02:35]} Ra8 {[%emt 0:00:16]} 25. Qd2 {[%emt 0:03:05]} b6 {[%emt 0:01:38]} 26. Bxe5 {[%emt 0:00:21]} 1-0